fUST/lending_fUST_20240327
["ID","MTS","AMOUNT","RATE_DAILY","PERIOD"]
[320659340,1711488644658,-500.0,0.00019178,2]
[320659342,1711488644668,-500.0,0.00019178,2]
[320659344,1711488644677,-1787.56,0.00019178,2]
[320659346,1711488644686,-500.0,0.00019178,2]
[320659348,1711488644695,-461.43468464,0.00019178,2]
[320659349,1711488644704,-500.0,0.00019178,2]
[320659351,1711488644714,-500.0,0.00019178,2]
[320659353,1711488644723,-2543.67,0.00019178,2]
[320659356,1711488644732,-529.32,0.00019178,2]
[320659358,1711488644741,-1178.86,0.00019178,2]
[320659360,1711488644750,-2875.62,0.00019178,2]
[320659361,1711488644759,-566.9,0.00019178,2]
[320659364,1711488644769,-500.0,0.00019178,2]
[320659366,1711488644778,-500.0,0.00019178,2]
[320659368,1711488644787,-509.47,0.00019178,2]
[320659369,1711488644796,-500.0,0.00019178,2]
[320659371,1711488644805,-500.0,0.00019178,2]
[320659373,1711488644814,-2581.11,0.00019178,2]
[320659375,1711488644824,-641.01,0.00019178,2]
[320659378,1711488644833,-500.0,0.00019178,2]
[320659380,1711488644843,-581.19,0.00019178,2]
[320659381,1711488644852,-544.14,0.00019178,2]
[320659383,1711488644861,-621.61,0.00019178,2]
[320659386,1711488644870,-500.0,0.00019178,2]
[320659387,1711488644879,-500.0,0.00019178,2]
[320659389,1711488644889,-1445.47,0.00019178,2]
[320659391,1711488644898,-500.0,0.00019178,2]
[320659393,1711488644907,-2776.01,0.00019178,2]
[320659395,1711488644916,-500.0,0.00019178,2]
[320659397,1711488644925,-500.0,0.00019178,2]
[320659399,1711488644934,-500.0,0.00019178,2]
[320659401,1711488644944,-500.0,0.00019178,2]
[320659403,1711488644954,-500.0,0.00019178,2]
[320659405,1711488644963,-500.0,0.00019178,2]
[320659407,1711488644972,-500.0,0.00019178,2]
[320659409,1711488644982,-2295.01,0.00019178,2]
[320659412,1711488644991,-32518.68,0.00019178,2]
[320659414,1711488645000,-500.0,0.00019178,2]
[320659416,1711488645009,-500.0,0.00019178,2]
[320659418,1711488645018,-500.0,0.00019178,2]
[320659419,1711488645027,-1834.71,0.00019178,2]
[320659422,1711488645036,-500.0,0.00019178,2]
[320659424,1711488645046,-500.0,0.00019178,2]
[320659426,1711488645055,-1264.58,0.00019178,2]
[320659428,1711488645064,-7429.5,0.00019178,2]
[320659430,1711488645073,-500.0,0.00019178,2]
[320659431,1711488645082,-500.0,0.00019178,2]
[320659434,1711488645093,-500.0,0.00019178,2]
[320659436,1711488645102,-500.0,0.00019178,2]
[320659437,1711488645112,-500.0,0.00019178,2]
[320659439,1711488645121,-500.0,0.00019178,2]
[320659441,1711488645130,-500.0,0.00019178,2]
[320659443,1711488645139,-5223.64,0.00019178,2]
[320659445,1711488645149,-2561.79,0.00019178,2]
[320659447,1711488645158,-500.0,0.00019178,2]
[320659449,1711488645167,-2170.28,0.00019178,2]
[320659451,1711488645177,-543.18920094,0.00019178,2]
[320659453,1711488645186,-778.4,0.00019178,2]
[320659455,1711488645195,-500.0,0.00019178,2]
[320659458,1711488645205,-500.0,0.00019178,2]
[320659459,1711488645218,-500.0,0.00019178,2]
[320659462,1711488645231,-876.12,0.00019178,2]
[320659464,1711488645240,-433.81927037,0.00019178,2]
[320659465,1711488645249,-500.0,0.00019178,2]
[320659468,1711488645259,-500.0,0.00019178,2]
[320659469,1711488645267,-500.0,0.00019178,2]
[320659472,1711488645277,-500.0,0.00019178,2]
[320659473,1711488645285,-500.0,0.00019178,2]
[320659475,1711488645295,-741.14,0.00019178,2]
[320659477,1711488645305,-6198.48,0.00019178,2]
[320659479,1711488645316,-500.0,0.00019178,2]
[320659482,1711488645325,-2183.93,0.00019178,2]
[320659484,1711488645335,-500.0,0.00019178,2]
[320659486,1711488645344,-500.0,0.00019178,2]
[320659488,1711488645353,-500.0,0.00019178,2]
[320659490,1711488645362,-500.0,0.00019178,2]
[320659492,1711488645371,-4160.26,0.00019178,2]
[320659506,1711488645487,-734.19,0.00019178,2]
[320659508,1711488645497,-650.79,0.00019178,2]
[320659510,1711488645506,-500.0,0.00019178,2]
[320659512,1711488645515,-500.0,0.00019178,2]
[320659514,1711488645524,-500.0,0.00019178,2]
[320659516,1711488645534,-500.0,0.00019178,2]
[320659518,1711488645543,-10681.84,0.00019178,2]
[320659520,1711488645552,-1244.94,0.00019178,2]
[320659522,1711488645561,-500.0,0.00019178,2]
[320659524,1711488645571,-500.0,0.00019178,2]
[320659526,1711488645580,-500.0,0.00019178,2]
[320659528,1711488645590,-500.0,0.00019178,2]
[320659530,1711488645598,-500.0,0.00019178,2]
[320659532,1711488645607,-740.57,0.00019178,2]
[320659534,1711488645616,-2764.76,0.00019178,2]
[320659536,1711488645625,-251.47236736,0.00019178,2]
[320659538,1711488645635,-500.0,0.00019178,2]
[320659540,1711488645644,-449.85358493,0.00019178,2]
[320659542,1711488645653,-798.9,0.00019178,2]
[320659544,1711488645663,-707.69,0.00019178,2]
[320659546,1711488645672,-1159.9,0.00019178,2]
[320659548,1711488645681,-500.0,0.00019178,2]
[320659550,1711488645691,-500.0,0.00019178,2]
[320659552,1711488645700,-675.0,0.00019178,2]
[320659554,1711488645710,-32548.3,0.00019178,2]
[320659556,1711488645719,-500.0,0.00019178,2]
[320659559,1711488645729,-500.0,0.00019178,2]
[320659560,1711488645739,-524.92,0.00019178,2]
[320659563,1711488645748,-5514.23,0.00019178,2]
[320659564,1711488645758,-500.0,0.00019178,2]
[320659567,1711488645768,-2400.11,0.00019178,2]
[320659568,1711488645777,-500.0,0.00019178,2]
[320659571,1711488645786,-500.0,0.00019178,2]
[320659572,1711488645796,-520.73,0.00019178,2]
[320659574,1711488645805,-500.0,0.00019178,2]
[320659576,1711488645814,-6015.77,0.00019178,2]
[320659579,1711488645823,-528.7,0.00019178,2]
[320659581,1711488645832,-3045.2,0.00019178,2]
[320659583,1711488645842,-500.0,0.00019178,2]
[320659585,1711488645851,-868.96,0.00019178,2]
[320659587,1711488645860,-500.0,0.00019178,2]
[320659589,1711488645869,-500.0,0.00019178,2]
[320659591,1711488645878,-1418.04,0.00019178,2]
[320659593,1711488645887,-500.0,0.00019178,2]
[320659595,1711488645896,-500.0,0.00019178,2]
[320659597,1711488645905,-411.17693521,0.00019178,2]
[320659599,1711488645914,-500.0,0.00019178,2]
[320659602,1711488645924,-574.11,0.00019178,2]
[320659604,1711488645933,-500.0,0.00019178,2]
[320659606,1711488645942,-500.0,0.00019178,2]
[320659608,1711488645951,-169.588992,0.00019178,2]
[320659610,1711488645961,-168.892983,0.00019178,2]
[320659611,1711488645970,-174.929888,0.00019178,2]
[320659613,1711488645980,-171.199951,0.00019178,2]
[320659615,1711488645989,-7760.73872435,0.0001988,2]
[320659617,1711488645998,-236.85437915,0.000199,2]
[320659619,1711488646008,-403.5247855,0.000199,2]
[320659622,1711488646017,-201.9518537,0.000199,2]
[320659625,1711488646027,-949.0,0.000199,2]
[320659627,1711488646036,-201.9518537,0.000199,2]
[320659629,1711488646045,-151.0,0.000199,2]
[320659631,1711488646054,-407.33322374,0.0001998,2]
[320659633,1711488646063,-499.999999,0.00019999,2]
[320659635,1711488646072,-155.01240099,0.0002,2]
[320659637,1711488646081,-194.38214072,0.0002,2]
[320659639,1711488646090,-684.16921587,0.0002,2]
[320659642,1711488646099,-400.0,0.0002,2]
[320659644,1711488646107,-155.01240099,0.0002,2]
[320659646,1711488646117,-240.88945792,0.0002,2]
[320659649,1711488646126,-300.24882924,0.0002,2]
[320659652,1711488646135,-239.56257658,0.0002,2]
[320659655,1711488646144,-328881.07,0.0002,2]
[320659657,1711488646153,-275.728301,0.0002,2]
[320659659,1711488646162,-780.54671569,0.0002,2]
[320659661,1711488646171,-200.0,0.0002,2]
[320659663,1711488646180,-201.9950273,0.0002,2]
[320659665,1711488646189,-201.9518537,0.000201,2]
[320659666,1711488646198,-201.9518537,0.000201,2]
[320659667,1711488646207,-201.9518537,0.000201,2]
[320659668,1711488646217,-201.9950273,0.00020164,2]
[320659669,1711488646229,-402.464081,0.00020164,2]
[320659670,1711488646238,-201.9950273,0.000202,2]
[320659671,1711488646247,-208.5891724,0.000202,2]
[320659672,1711488646257,-201.9950273,0.000202,2]
[320659673,1711488646266,-201.9950273,0.000202,2]
[320659674,1711488646275,-201.9950273,0.000202,2]
[320659675,1711488646285,-201.9950273,0.000202,2]
[320659676,1711488646294,-201.9950273,0.000202,2]
[320659678,1711488646304,-201.9950273,0.000202,2]
[320659680,1711488646313,-201.9950273,0.000202,2]
[320659682,1711488646324,-201.9950273,0.00020256,2]
[320659684,1711488646333,-2000.0,0.00020372,2]
[320659686,1711488646343,-153.0,0.00020447,2]
[320659688,1711488646352,-153.0,0.00020447,2]
[320659690,1711488646362,-153.0,0.00020447,2]
[320659692,1711488646371,-153.0,0.00020493,2]
[320659694,1711488646380,-153.0,0.00020493,2]
[320659696,1711488646390,-153.0,0.00020822,2]
[320659698,1711488646399,-153.0,0.00020822,2]
[320659700,1711488646409,-153.0,0.00020986,2]
[320659702,1711488646418,-201.9950273,0.00020986,2]
[320659704,1711488646427,-201.9950273,0.00020986,2]
[320659706,1711488646437,-201.9950273,0.00020986,2]
[320659708,1711488646446,-201.9950273,0.00020986,2]
[320659710,1711488646456,-201.9950273,0.00020986,2]
[320659712,1711488646465,-201.9950273,0.00020986,2]
[320659714,1711488646474,-201.9950273,0.00020986,2]
[320659716,1711488646483,-201.9950273,0.00020986,2]
[320659718,1711488646492,-201.9950273,0.00020986,2]
[320659720,1711488646501,-201.9950273,0.00020986,2]
[320659722,1711488646510,-201.9950273,0.00020986,2]
[320659724,1711488646520,-201.9950273,0.00020986,2]
[320659726,1711488646529,-201.9950273,0.00020986,2]
[320659728,1711488646538,-404.9155609,0.00020986,2]
[320659730,1711488646547,-963.0,0.00021,2]
[320659732,1711488646556,-9566.58156068,0.00021,2]
[320659734,1711488646566,-963.0,0.00021,2]
[320659736,1711488646575,-153.0,0.00021151,2]
[320659738,1711488646584,-153.0,0.00021151,2]
[320659740,1711488646594,-153.0,0.00021151,2]
[320659742,1711488646603,-153.0,0.00021151,2]
[320659744,1711488646612,-153.0,0.00021151,2]
[320659746,1711488646622,-153.0,0.00021151,2]
[320659748,1711488646631,-153.0,0.00021151,2]
[320659750,1711488646641,-153.0,0.00021151,2]
[320659752,1711488646650,-153.0,0.00021151,2]
[320659754,1711488646659,-153.0,0.00021151,2]
[320659756,1711488646669,-306.0,0.00021151,2]
[320659758,1711488646678,-153.0,0.00021151,2]
[320659760,1711488646687,-620.00000428,0.00021207,2]
[320659762,1711488646697,-153.0,0.00021479,2]
[320659764,1711488646706,-153.0,0.00021479,2]
[320659766,1711488646715,-153.0,0.00021479,2]
[320659768,1711488646725,-153.0,0.00021479,2]
[320659771,1711488646734,-153.0,0.00021479,2]
[320659772,1711488646743,-153.0,0.00021479,2]
[320659775,1711488646752,-153.0,0.00021479,2]
[320659776,1711488646762,-153.0,0.00021479,2]
[320659778,1711488646771,-153.0,0.00021479,2]
[320659780,1711488646780,-153.0,0.00021479,2]
[320659782,1711488646790,-153.0,0.00021644,2]
[320659785,1711488646799,-165.40406428,0.00021697,2]
[320659786,1711488646809,-153.0,0.00021699,2]
[320659788,1711488646818,-153.0,0.00021699,2]
[320659791,1711488646827,-3819.79432457,0.00021804,2]
[320659793,1711488646838,-153.0,0.00021808,2]
[320659795,1711488646847,-2000.0,0.00021817,2]
[320659797,1711488646857,-296.0,0.000219,2]
[320659798,1711488646866,-155.01240099,0.00021917,2]
[320659800,1711488646876,-725.82944768,0.00021917,5]
[320659802,1711488646886,-500.0,0.00021917,2]
[320659804,1711488646895,-500.0,0.00021917,2]
[320659807,1711488646904,-500.0,0.00021917,2]
[320659808,1711488646914,-381.83804207,0.00021917,2]
[320659811,1711488646923,-567.37,0.00021917,2]
[320659813,1711488646932,-500.0,0.00021917,2]
[320659815,1711488646942,-500.0,0.00021917,2]
[320659817,1711488646951,-500.0,0.00021917,2]
[320659819,1711488646960,-500.0,0.00021917,2]
[320659821,1711488646969,-500.0,0.00021917,2]
[320659822,1711488646978,-500.0,0.00021917,2]
[320659825,1711488646988,-500.0,0.00021917,2]
[320659827,1711488646997,-500.0,0.00021917,2]
[320659829,1711488647007,-831.97,0.00021917,2]
[320659831,1711488647016,-500.0,0.00021917,2]
[320659833,1711488647025,-500.0,0.00021917,2]
[320659834,1711488647035,-644.41488977,0.00021917,2]
[320659837,1711488647044,-500.0,0.00021917,2]
[320659838,1711488647053,-500.0,0.00021917,2]
[320659840,1711488647063,-500.0,0.00021917,2]
[320659843,1711488647073,-500.0,0.00021917,2]
[320659845,1711488647083,-500.0,0.00021917,2]
[320659847,1711488647092,-500.0,0.00021917,2]
[320659849,1711488647101,-628.15,0.00021917,2]
[320659851,1711488647110,-519.53,0.00021917,2]
[320659852,1711488647120,-500.0,0.00021917,2]
[320659854,1711488647130,-500.0,0.00021917,2]
[320659857,1711488647139,-500.0,0.00021917,2]
[320659859,1711488647149,-500.0,0.00021917,2]
[320659861,1711488647158,-500.0,0.00021917,2]
[320659863,1711488647168,-610.04,0.00021917,2]
[320659865,1711488647177,-663.34,0.00021917,2]
[320659867,1711488647187,-907.44,0.00021917,2]
[320659869,1711488647196,-500.0,0.00021917,2]
[320659871,1711488647206,-500.0,0.00021917,2]
[320659873,1711488647216,-500.0,0.00021917,2]
[320659875,1711488647228,-507.47,0.00021917,2]
[320659876,1711488647238,-500.0,0.00021917,2]
[320659879,1711488647248,-673.02,0.00021917,2]
[320659881,1711488647259,-500.0,0.00021917,2]
[320659883,1711488647270,-2812.99,0.00021917,2]
[320659885,1711488647282,-500.0,0.00021917,2]
[320659887,1711488647292,-500.0,0.00021917,2]
[320659889,1711488647301,-177.6881454,0.00021917,2]
[320659890,1711488647313,-500.0,0.00021917,2]
[320659892,1711488647323,-500.0,0.00021917,2]
[320659894,1711488647332,-589.35849417,0.00021917,2]
[320659897,1711488647342,-500.0,0.00021917,2]
[320659898,1711488647352,-559.75,0.00021917,2]
[320659900,1711488647361,-500.0,0.00021917,2]
[320659903,1711488647370,-500.0,0.00021917,2]
[320659905,1711488647381,-254.37294927,0.00021917,2]
[320659907,1711488647390,-513.9,0.00021917,2]
[320659908,1711488647399,-349.27506923,0.00021917,2]
[320659911,1711488647408,-500.0,0.00021917,2]
[320659913,1711488647418,-373.33057356,0.00021917,2]
[320659915,1711488647428,-500.0,0.00021917,2]
[320659916,1711488647437,-590.09,0.00021917,2]
[320659918,1711488647447,-674.85,0.00021917,2]
[320659920,1711488647457,-500.0,0.00021917,2]
[320659922,1711488647467,-500.0,0.00021917,2]
[320659924,1711488647476,-662.7,0.00021917,2]
[320659926,1711488647486,-702.82,0.00021917,2]
[320659929,1711488647495,-500.0,0.00021917,2]
[320659930,1711488647505,-500.0,0.00021917,2]
[320659933,1711488647514,-1065.45,0.00021917,2]
[320659934,1711488647523,-500.0,0.00021917,2]
[320659936,1711488647532,-500.0,0.00021917,2]
[320659939,1711488647542,-444.8484916,0.00021917,2]
[320659940,1711488647551,-552.22,0.00021917,2]
[320659943,1711488647561,-500.0,0.00021917,2]
[320659945,1711488647571,-735.24,0.00021917,2]
[320659947,1711488647580,-735.24,0.00021917,2]
[320659949,1711488647590,-500.0,0.00021917,2]
[320659951,1711488647599,-552.13,0.00021917,2]
[320659953,1711488647609,-784.81,0.00021917,2]
[320659955,1711488647618,-500.0,0.00021917,2]
[320659957,1711488647627,-606.54,0.00021917,2]
[320659959,1711488647636,-1058.27,0.00021917,2]
[320659961,1711488647645,-641.66,0.00021917,2]
[320659963,1711488647655,-500.0,0.00021917,2]
[320659965,1711488647663,-500.0,0.00021917,2]
[320659967,1711488647672,-500.0,0.00021917,2]
[320659969,1711488647682,-622.62,0.00021917,2]
[320659971,1711488647691,-986.62,0.00021917,2]
[320659973,1711488647700,-500.0,0.00021917,2]
[320659975,1711488647709,-500.0,0.00021917,2]
[320659984,1711488647810,-778.03,0.00021917,2]
[320659986,1711488647819,-541.94469396,0.00021917,2]
[320659987,1711488647829,-500.0,0.00021917,2]
[320659989,1711488647838,-1787.56,0.00021917,2]
[320659991,1711488647847,-500.0,0.00021917,2]
[320659992,1711488647857,-500.0,0.00021917,2]
[320659994,1711488647866,-500.0,0.00021917,2]
[320659996,1711488647875,-2543.67,0.00021917,2]
[320659998,1711488647884,-529.32,0.00021917,2]
[320659999,1711488647893,-1178.86,0.00021917,2]
[320660001,1711488647902,-2875.62,0.00021917,2]
[320660003,1711488647911,-566.9,0.00021917,2]
[320660004,1711488647919,-556.86859401,0.00021917,2]
[320660006,1711488647929,-500.0,0.00021917,2]
[320660008,1711488647938,-509.47,0.00021917,2]
[320660009,1711488647947,-504.7331533,0.00021917,2]
[320660011,1711488647956,-500.0,0.00021917,2]
[320660013,1711488647966,-2581.11,0.00021917,2]
[320660015,1711488647975,-641.01,0.00021917,2]
[320660017,1711488647984,-500.0,0.00021917,2]
[320660018,1711488647993,-581.19,0.00021917,2]
[320660020,1711488648002,-544.14,0.00021917,2]
[320660022,1711488648011,-621.61,0.00021917,2]
[320660023,1711488648020,-500.0,0.00021917,2]
[320660025,1711488648029,-500.0,0.00021917,2]
[320660027,1711488648039,-1445.47,0.00021917,2]
[320660029,1711488648048,-500.0,0.00021917,2]
[320660030,1711488648057,-2776.01,0.00021917,2]
[320660032,1711488648066,-500.0,0.00021917,2]
[320660034,1711488648075,-500.0,0.00021917,2]
[320660036,1711488648084,-500.0,0.00021917,2]
[320660037,1711488648095,-361.09176658,0.00021917,2]
[320660039,1711488648104,-500.0,0.00021917,2]
[320660041,1711488648114,-500.0,0.00021917,2]
[320660042,1711488648123,-500.0,0.00021917,2]
[320660044,1711488648133,-2295.01,0.00021917,2]
[320660046,1711488648142,-32518.68,0.00021917,2]
[320660048,1711488648151,-500.0,0.00021917,2]
[320660050,1711488648160,-500.0,0.00021917,2]
[320660052,1711488648169,-1834.71,0.00021917,2]
[320660053,1711488648178,-500.0,0.00021917,2]
[320660055,1711488648188,-1264.58,0.00021917,2]
[320660057,1711488648197,-7429.5,0.00021917,2]
[320660059,1711488648206,-500.0,0.00021917,2]
[320660060,1711488648216,-500.0,0.00021917,2]
[320660062,1711488648227,-500.0,0.00021917,2]
[320660064,1711488648237,-500.0,0.00021917,2]
[320660066,1711488648247,-500.0,0.00021917,2]
[320660068,1711488648256,-500.0,0.00021917,2]
[320660069,1711488648266,-5223.64,0.00021917,2]
[320660071,1711488648275,-500.0,0.00021917,2]
[320660073,1711488648284,-2561.79,0.00021917,2]
[320660075,1711488648294,-500.0,0.00021917,2]
[320660077,1711488648304,-2170.28,0.00021917,2]
[320660079,1711488648314,-778.4,0.00021917,2]
[320660080,1711488648323,-507.33073865,0.00021917,2]
[320660082,1711488648333,-500.0,0.00021917,2]
[320660084,1711488648345,-500.0,0.00021917,2]
[320660086,1711488648355,-876.12,0.00021917,2]
[320660088,1711488648365,-500.0,0.00021917,2]
[320660089,1711488648375,-500.0,0.00021917,2]
[320660091,1711488648385,-500.0,0.00021917,2]
[320660093,1711488648396,-500.0,0.00021917,2]
[320660095,1711488648405,-500.0,0.00021917,2]
[320660097,1711488648415,-741.14,0.00021917,2]
[320660099,1711488648425,-6198.48,0.00021917,2]
[320660100,1711488648434,-500.0,0.00021917,2]
[320660102,1711488648444,-2183.93,0.00021917,2]
[320660104,1711488648453,-500.0,0.00021917,2]
[320660106,1711488648463,-500.0,0.00021917,2]
[320660108,1711488648473,-500.0,0.00021917,2]
[320660110,1711488648483,-4160.26,0.00021917,2]
[320660111,1711488648492,-500.0,0.00021917,2]
[320660113,1711488648502,-734.19,0.00021917,2]
[320660115,1711488648512,-650.79,0.00021917,2]
[320660117,1711488648521,-500.0,0.00021917,2]
[320660119,1711488648530,-500.0,0.00021917,2]
[320660120,1711488648539,-500.0,0.00021917,2]
[320660122,1711488648549,-500.0,0.00021917,2]
[320660124,1711488648558,-10681.84,0.00021917,2]
[320660126,1711488648567,-1244.94,0.00021917,2]
[320660128,1711488648576,-500.0,0.00021917,2]
[320660130,1711488648586,-500.0,0.00021917,2]
[320660132,1711488648597,-500.0,0.00021917,2]
[320660133,1711488648607,-500.0,0.00021917,2]
[320660135,1711488648616,-740.57,0.00021917,2]
[320660137,1711488648625,-2764.76,0.00021917,2]
[320660139,1711488648634,-500.0,0.00021917,2]
[320660141,1711488648644,-798.9,0.00021917,2]
[320660142,1711488648653,-707.69,0.00021917,2]
[320660144,1711488648662,-1159.9,0.00021917,2]
[320660146,1711488648673,-500.0,0.00021917,2]
[320660148,1711488648683,-500.0,0.00021917,2]
[320660150,1711488648692,-675.0,0.00021917,2]
[320660152,1711488648702,-32548.3,0.00021917,2]
[320660153,1711488648712,-500.0,0.00021917,2]
[320660155,1711488648722,-500.0,0.00021917,2]
[320660157,1711488648732,-524.92,0.00021917,2]
[320660159,1711488648741,-5514.23,0.00021917,2]
[320660161,1711488648751,-2400.11,0.00021917,2]
[320660162,1711488648761,-500.0,0.00021917,2]
[320660164,1711488648771,-500.0,0.00021917,2]
[320660166,1711488648780,-520.73,0.00021917,2]
[320660168,1711488648790,-6015.77,0.00021917,2]
[320660169,1711488648799,-500.0,0.00021917,2]
[320660171,1711488648808,-528.7,0.00021917,2]
[320660173,1711488648818,-3045.2,0.00021917,2]
[320660175,1711488648828,-500.0,0.00021917,2]
[320660177,1711488648837,-868.96,0.00021917,2]
[320660179,1711488648847,-500.0,0.00021917,2]
[320660181,1711488648856,-500.0,0.00021917,2]
[320660182,1711488648865,-1418.04,0.00021917,2]
[320660184,1711488648874,-500.0,0.00021917,2]
[320660186,1711488648883,-500.0,0.00021917,2]
[320660188,1711488648892,-500.0,0.00021917,2]
[320660190,1711488648902,-574.11,0.00021917,2]
[320660191,1711488648911,-500.0,0.00021917,2]
[320660193,1711488648920,-500.0,0.00021917,2]
[320660195,1711488648929,-166.666666,0.00021918,2]
[320660197,1711488648938,-153.0,0.00021918,2]
[320660199,1711488648947,-153.0,0.00021918,2]
[320660201,1711488648956,-153.0,0.00021918,2]
[320660202,1711488648965,-154.118633,0.00021918,2]
[320660204,1711488648975,-153.0,0.00021918,2]
[320660206,1711488648984,-153.0,0.00021918,2]
[320660208,1711488648993,-153.0,0.00021918,2]
[320660210,1711488649002,-153.0,0.00021918,2]
[320660211,1711488649011,-153.0,0.00021918,2]
[320660213,1711488649020,-153.0,0.00021918,2]
[320660215,1711488649029,-153.0,0.00021918,2]
[320660217,1711488649038,-156.6945923,0.00021918,2]
[320660219,1711488649047,-153.0,0.00021918,2]
[320660220,1711488649057,-153.0,0.00021918,2]
[320660222,1711488649066,-153.0,0.00021918,2]
[320660224,1711488649076,-153.0,0.00021918,2]
[320660226,1711488649085,-153.0,0.00021918,2]
[320660228,1711488649095,-153.0,0.00021918,2]
[320660230,1711488649105,-2000.0,0.00021927,2]
[320660231,1711488649115,-153.0,0.00021954,2]
[320660233,1711488649123,-153.0,0.00021954,2]
[320660235,1711488649132,-458.999999,0.00021954,2]
[320660237,1711488649141,-153.0,0.00021954,2]
[320660239,1711488649150,-232.9770968,0.00021997,2]
[320660240,1711488649160,-276288.51151606,0.00022,3]
[320660242,1711488649169,-15419.98609265,0.00022,10]
[320660244,1711488649179,-317588.76681301,0.00022,4]
[320660246,1711488649188,-2000.0,0.00022,2]
[320660248,1711488649197,-12800.07343957,0.00022,2]
[320660250,1711488649206,-296.0,0.00022,2]
[320660251,1711488649216,-296.0,0.00022,2]
[320660253,1711488649226,-157.80762119,0.00022,2]
[320660255,1711488649237,-592.0,0.00022,2]
[320660257,1711488649245,-592.0,0.00022,2]
[320660259,1711488649254,-592.0,0.00022,2]
[320660261,1711488649263,-2000.0,0.00022,2]
[320660262,1711488649273,-183.0,0.00022,2]
[320660264,1711488649282,-306.0,0.00022137,2]
[320660266,1711488649292,-201.9518537,0.00022137,2]
[320660268,1711488649301,-201.9950273,0.00022137,2]
[320660270,1711488649311,-201.9950273,0.00022137,2]
[320660271,1711488649320,-877.46470654,0.0002217,2]
[320660273,1711488649329,-620.00000021,0.00022267,2]
[320660275,1711488649340,-153.0,0.00022301,2]
[320660277,1711488649349,-153.0,0.00022301,2]
[320660279,1711488649358,-153.0,0.00022301,2]
[320660281,1711488649367,-166.666666,0.00022431,2]
[320660283,1711488649377,-153.0,0.00022466,2]
[320660284,1711488649386,-153.0,0.00022466,2]
[320660286,1711488649395,-153.0,0.00022466,2]
[320660288,1711488649405,-153.0,0.00022466,2]
[320660290,1711488649414,-153.0,0.00022466,2]
[320660292,1711488649423,-153.0,0.00022466,2]
[320660293,1711488649432,-153.0,0.00022466,2]
[320660295,1711488649441,-153.0,0.00022466,2]
[320660297,1711488649450,-153.0,0.00022466,2]
[320660299,1711488649459,-261.0662132,0.00022466,2]
[320660301,1711488649468,-153.0,0.00022779,2]
[320660302,1711488649477,-153.0,0.00022779,2]
[320660304,1711488649486,-153.0,0.00022779,2]
[320660306,1711488649496,-153.0,0.00022779,2]
[320660308,1711488649505,-153.0,0.00022779,2]
[320660310,1711488649514,-153.0,0.00022779,2]
[320660312,1711488649523,-153.0,0.00022779,2]
[320660314,1711488649532,-153.0,0.00022779,2]
[320660316,1711488649541,-153.0,0.00022779,2]
[320660318,1711488649551,-203.6267668,0.00022779,2]